fUST/lending_fUST_20240717
["ID","MTS","AMOUNT","RATE_DAILY","PERIOD"]
[332468530,1721212245579,-151.0,0.00022191,7]
[332468531,1721212245589,-176.249477,0.00022191,7]
[332468532,1721212245599,-176.249477,0.00022191,7]
[332468533,1721212245610,-150.0,0.00022244,2]
[332468534,1721212245619,-504.0,0.00022244,2]
[332468535,1721212245629,-1407.0,0.00022244,2]
[332468536,1721212245639,-266.5,0.00022331,2]
[332468537,1721212245649,-153.0,0.00022384,2]
[332468538,1721212245658,-160.49649706,0.00022387,2]
[332468539,1721212245668,-166.666666,0.00022431,2]
[332468540,1721212245677,-1616.14,0.00022465,2]
[332468541,1721212245687,-500.0,0.00022465,2]
[332468542,1721212245696,-404.2,0.00022465,2]
[332468543,1721212245706,-500.0,0.00022465,2]
[332468544,1721212245719,-6599.9,0.00022465,2]
[332468545,1721212245729,-44213.74,0.00022465,2]
[332468546,1721212245738,-500.0,0.00022465,2]
[332468547,1721212245747,-500.0,0.00022465,2]
[332468548,1721212245757,-213.94,0.00022465,2]
[332468549,1721212245766,-214.76,0.00022465,2]
[332468550,1721212245776,-293.44,0.00022465,2]
[332468551,1721212245785,-1146.33,0.00022465,2]
[332468552,1721212245795,-170.46,0.00022465,2]
[332468553,1721212245804,-443.5,0.00022465,2]
[332468554,1721212245813,-200.0,0.00022465,2]
[332468555,1721212245823,-500.0,0.00022465,2]
[332468556,1721212245833,-500.0,0.00022465,2]
[332468557,1721212245842,-329.83343105,0.00022465,2]
[332468558,1721212245851,-500.0,0.00022465,2]
[332468559,1721212245860,-500.0,0.00022465,2]
[332468560,1721212245869,-2000.0,0.00022465,2]
[332468561,1721212245878,-578.11,0.00022465,2]
[332468562,1721212245888,-602.33397314,0.00022597,2]
[332468563,1721212245897,-1037.53127397,0.00022639,3]
[332468564,1721212245907,-153.0,0.00022712,2]
[332468565,1721212245916,-153.0,0.00022712,2]
[332468566,1721212245926,-153.0,0.00022712,2]
[332468567,1721212245935,-153.0,0.00022712,2]
[332468568,1721212245945,-153.0,0.00022712,2]
[332468570,1721212245955,-153.0,0.00022712,2]
[332468571,1721212245966,-153.0,0.00022712,2]
[332468573,1721212245975,-153.0,0.00022712,2]
[332468574,1721212245985,-266.5,0.00022727,2]
[332468575,1721212245994,-1616.14,0.00022739,2]
[332468576,1721212246003,-500.0,0.00022739,2]
[332468577,1721212246013,-500.0,0.00022739,2]
[332468578,1721212246023,-6599.9,0.00022739,2]
[332468579,1721212246033,-44213.74,0.00022739,2]
[332468580,1721212246043,-500.0,0.00022739,2]
[332468581,1721212246053,-500.0,0.00022739,2]
[332468582,1721212246063,-1146.33,0.00022739,2]
[332468583,1721212246072,-200.0,0.00022739,2]
[332468585,1721212246082,-229.2,0.00022739,2]
[332468586,1721212246091,-644.06,0.00022739,2]
[332468587,1721212246101,-500.0,0.00022739,2]
[332468588,1721212246110,-500.0,0.00022739,2]
[332468589,1721212246120,-2000.0,0.00022739,2]
[332468591,1721212246129,-578.11,0.00022739,2]
[332468593,1721212246139,-3200.0,0.00022787,2]
[332468595,1721212246148,-6385.69622306,0.00022941,2]
[332468597,1721212246158,-1691.53747832,0.00022942,2]
[332468598,1721212246167,-166.666666,0.00022944,2]
[332468599,1721212246177,-5159.77007997,0.00022993,2]
[332468600,1721212246186,-1616.14,0.00023013,2]
[332468601,1721212246195,-500.0,0.00023013,2]
[332468602,1721212246206,-500.0,0.00023013,2]
[332468603,1721212246218,-6599.9,0.00023013,2]
[332468604,1721212246229,-28084.40528803,0.00023013,2]
[332468606,1721212246454,-16129.33471197,0.00023013,2]
[332468607,1721212246466,-316.38,0.00023013,2]
[332468608,1721212246475,-500.0,0.00023013,2]
[332468609,1721212246484,-1146.33,0.00023013,2]
[332468610,1721212246494,-200.0,0.00023013,2]
[332468611,1721212246503,-500.0,0.00023013,2]
[332468612,1721212246512,-2000.0,0.00023013,2]
[332468613,1721212246522,-500.0,0.00023013,2]
[332468614,1721212246532,-578.11,0.00023013,2]
[332468615,1721212246541,-151.0,0.00023013,7]
[332468616,1721212246551,-151.0,0.00023013,7]
[332468617,1721212246560,-151.0,0.00023013,7]
[332468618,1721212246569,-239.32904,0.00023013,7]
[332468619,1721212246578,-252.185861,0.00023013,7]
[332468620,1721212246587,-176.249477,0.00023013,7]
[332468621,1721212246596,-176.249477,0.00023013,7]
[332468622,1721212246605,-160.0,0.00023014,2]
[332468623,1721212246614,-306.0,0.00023041,2]
[332468624,1721212246623,-153.0,0.00023041,2]
[332468625,1721212246633,-5159.77007997,0.0002309,2]
[332468626,1721212246642,-266.5,0.00023123,2]
[332468627,1721212246651,-344.96997794,0.00023197,2]
[332468628,1721212246660,-1616.14,0.00023287,2]
[332468629,1721212246669,-500.0,0.00023287,2]
[332468630,1721212246678,-500.0,0.00023287,2]
[332468631,1721212246687,-6186.27166765,0.00023287,2]
[332468632,1721212246750,-153.0,0.00022712,2]
[332468633,1721212246761,-413.62833235,0.00023287,2]
[332468634,1721212246771,-13651.63812606,0.00023287,2]
[332468635,1721212246785,-30562.10187394,0.00023287,2]
[332468636,1721212246795,-500.0,0.00023287,2]
[332468637,1721212246806,-1146.33,0.00023287,2]
[332468638,1721212246815,-200.0,0.00023287,2]
[332468639,1721212246826,-500.0,0.00023287,2]
[332468640,1721212246836,-2000.0,0.00023287,2]
[332468641,1721212246846,-500.0,0.00023287,2]
[332468642,1721212246856,-578.11,0.00023287,2]
[332468643,1721212246866,-1899.7553,0.00023287,7]
[332468644,1721212246877,-1899.7553,0.00023287,7]
[332468645,1721212246886,-151.0,0.00023287,7]
[332468646,1721212246895,-151.0,0.00023287,7]
[332468647,1721212246904,-176.249477,0.00023287,7]
[332468648,1721212246913,-176.249477,0.00023287,7]
[332468649,1721212246924,-166.666666,0.00023456,2]
[332468650,1721212246933,-374.0,0.000235,2]
[332468651,1721212246943,-1351.18528674,0.00023515,2]
[332468652,1721212246954,-266.5,0.00023519,2]
[332468653,1721212246964,-151.0,0.00023519,2]
[332468654,1721212246973,-154.06416835,0.00023523,2]
[332468655,1721212246983,-153.0,0.00023534,2]
[332468656,1721212246994,-153.0,0.00023534,2]
[332468657,1721212247003,-153.0,0.00023534,2]
[332468658,1721212247011,-153.0,0.00023534,2]
[332468659,1721212247020,-153.0,0.00023534,2]
[332468660,1721212247030,-153.0,0.00023534,2]
[332468661,1721212247040,-153.0,0.00023534,2]
[332468662,1721212247050,-153.0,0.00023534,2]
[332468663,1721212247059,-153.0,0.00023534,2]
[332468664,1721212247068,-153.0,0.00023534,2]
[332468665,1721212247077,-153.0,0.00023534,2]
[332468666,1721212247086,-153.0,0.00023534,2]
[332468667,1721212247095,-153.0,0.00023534,2]
[332468668,1721212247104,-4869.37892795,0.00023541,2]
[332468669,1721212247113,-631.37647076,0.00023543,2]
[332468670,1721212247122,-2000.0,0.00023543,2]
[332468671,1721212247132,-631.34484402,0.00023551,3]
[332468672,1721212247142,-2000.0,0.00023552,2]
[332468673,1721212247151,-2096.39,0.0002356,2]
[332468674,1721212247161,-2096.39,0.0002356,2]
[332468675,1721212247170,-2096.39,0.0002356,2]
[332468676,1721212247179,-2096.39,0.0002356,2]
[332468677,1721212247189,-2096.39,0.0002356,2]
[332468678,1721212247198,-2096.39,0.0002356,2]
[332468679,1721212247208,-2096.39,0.0002356,2]
[332468680,1721212247218,-2096.39,0.0002356,2]
[332468681,1721212247228,-2096.51436512,0.0002356,2]
[332468682,1721212247237,-4887.11680544,0.00023561,5]
[332468683,1721212247247,-739.13,0.00023561,2]
[332468684,1721212247256,-500.0,0.00023561,2]
[332468685,1721212247266,-500.0,0.00023561,2]
[332468686,1721212247276,-500.0,0.00023561,2]
[332468687,1721212247285,-500.0,0.00023561,2]
[332468688,1721212247295,-500.0,0.00023561,2]
[332468689,1721212247304,-500.0,0.00023561,2]
[332468690,1721212247314,-1445.63,0.00023561,2]
[332468691,1721212247323,-500.0,0.00023561,2]
[332468692,1721212247333,-500.0,0.00023561,2]
[332468693,1721212247343,-668.51,0.00023561,2]
[332468694,1721212247353,-175.64207054,0.00023561,2]
[332468695,1721212247363,-516.75,0.00023561,2]
[332468696,1721212247376,-500.0,0.00023561,2]
[332468697,1721212247385,-500.0,0.00023561,2]
[332468698,1721212247395,-408.0119199,0.00023561,2]
[332468699,1721212247404,-500.0,0.00023561,2]
[332468700,1721212247415,-500.0,0.00023561,2]
[332468701,1721212247424,-500.0,0.00023561,2]
[332468702,1721212247434,-500.0,0.00023561,2]
[332468703,1721212247443,-500.0,0.00023561,2]
[332468704,1721212247455,-1334.3,0.00023561,2]
[332468705,1721212247465,-468.67379363,0.00023561,2]
[332468706,1721212247474,-500.0,0.00023561,2]
[332468707,1721212247486,-617.08,0.00023561,2]
[332468708,1721212247494,-500.0,0.00023561,2]
[332468709,1721212247504,-772.49,0.00023561,2]
[332468710,1721212247513,-374.03665919,0.00023561,2]
[332468711,1721212247522,-1245.99,0.00023561,2]
[332468712,1721212247531,-500.0,0.00023561,2]
[332468713,1721212247541,-500.0,0.00023561,2]
[332468714,1721212247550,-500.0,0.00023561,2]
[332468715,1721212247559,-799.25,0.00023561,2]
[332468716,1721212247568,-500.0,0.00023561,2]
[332468717,1721212247576,-500.0,0.00023561,2]
[332468718,1721212247586,-500.0,0.00023561,2]
[332468719,1721212247595,-500.0,0.00023561,2]
[332468720,1721212247604,-6948.55,0.00023561,2]
[332468721,1721212247613,-500.0,0.00023561,2]
[332468722,1721212247622,-255.32617118,0.00023561,2]
[332468723,1721212247631,-500.0,0.00023561,2]
[332468724,1721212247640,-500.0,0.00023561,2]
[332468725,1721212247649,-254.72395576,0.00023561,2]
[332468726,1721212247659,-500.0,0.00023561,2]
[332468727,1721212247669,-368.35167939,0.00023561,2]
[332468728,1721212247680,-500.0,0.00023561,2]
[332468729,1721212247689,-500.0,0.00023561,2]
[332468730,1721212247699,-853.46,0.00023561,2]
[332468731,1721212247710,-500.0,0.00023561,2]
[332468732,1721212247720,-396.5647697,0.00023561,2]
[332468733,1721212247730,-500.0,0.00023561,2]
[332468734,1721212247741,-500.0,0.00023561,2]
[332468735,1721212247751,-384.37172004,0.00023561,2]
[332468736,1721212247761,-500.0,0.00023561,2]
[332468737,1721212247771,-1523.41,0.00023561,2]
[332468738,1721212247782,-500.0,0.00023561,2]
[332468739,1721212247793,-282.68065747,0.00023561,2]
[332468740,1721212247804,-500.0,0.00023561,2]
[332468741,1721212247814,-500.0,0.00023561,2]
[332468742,1721212247824,-500.0,0.00023561,2]
[332468743,1721212247834,-500.0,0.00023561,2]
[332468744,1721212247844,-628.99,0.00023561,2]
[332468745,1721212247855,-666.69,0.00023561,2]
[332468746,1721212247866,-1166.64,0.00023561,2]
[332468747,1721212247876,-500.0,0.00023561,2]
[332468748,1721212247888,-666.5,0.00023561,2]
[332468749,1721212247898,-500.0,0.00023561,2]
[332468750,1721212247909,-500.0,0.00023561,2]
[332468751,1721212247920,-500.0,0.00023561,2]
[332468752,1721212247933,-785.35,0.00023561,2]
[332468753,1721212247944,-1341.26,0.00023561,2]
[332468754,1721212247955,-500.0,0.00023561,2]
[332468755,1721212247967,-352.51520535,0.00023561,2]
[332468756,1721212247979,-500.0,0.00023561,2]
[332468757,1721212247988,-500.0,0.00023561,2]
[332468758,1721212247997,-1110.03,0.00023561,2]
[332468759,1721212248006,-6220.03,0.00023561,2]
[332468760,1721212248016,-500.0,0.00023561,2]
[332468761,1721212248026,-500.0,0.00023561,2]
[332468762,1721212248035,-500.0,0.00023561,2]
[332468763,1721212248045,-500.0,0.00023561,2]
[332468764,1721212248054,-500.0,0.00023561,2]
[332468765,1721212248064,-465.83531025,0.00023561,2]
[332468766,1721212248073,-1367.7,0.00023561,2]
[332468767,1721212248082,-552.94,0.00023561,2]
[332468768,1721212248091,-500.0,0.00023561,2]
[332468769,1721212248101,-500.0,0.00023561,2]
[332468770,1721212248110,-500.0,0.00023561,2]
[332468771,1721212248120,-690.51,0.00023561,2]
[332468772,1721212248130,-500.0,0.00023561,2]
[332468773,1721212248140,-483.9066342,0.00023561,2]
[332468774,1721212248150,-500.0,0.00023561,2]
[332468775,1721212248159,-599.72,0.00023561,2]
[332468776,1721212248169,-500.0,0.00023561,2]
[332468777,1721212248180,-282.56625016,0.00023561,2]
[332468778,1721212248190,-500.0,0.00023561,2]
[332468779,1721212248200,-617.13,0.00023561,2]
[332468780,1721212248210,-500.0,0.00023561,2]
[332468781,1721212248221,-870.41,0.00023561,2]
[332468782,1721212248230,-500.0,0.00023561,2]
[332468783,1721212248240,-1150.23,0.00023561,2]
[332468784,1721212248248,-500.0,0.00023561,2]
[332468785,1721212248258,-546.3,0.00023561,2]
[332468786,1721212248268,-500.0,0.00023561,2]
[332468787,1721212248278,-500.0,0.00023561,2]
[332468788,1721212248287,-643.82,0.00023561,2]
[332468789,1721212248297,-16637.12,0.00023561,2]
[332468790,1721212248306,-500.0,0.00023561,2]
[332468791,1721212248316,-500.0,0.00023561,2]
[332468792,1721212248325,-500.0,0.00023561,2]
[332468793,1721212248335,-500.0,0.00023561,2]
[332468794,1721212248344,-500.0,0.00023561,2]
[332468795,1721212248353,-500.0,0.00023561,2]
[332468796,1721212248363,-500.0,0.00023561,2]
[332468797,1721212248376,-1773.4,0.00023561,2]
[332468798,1721212248386,-500.0,0.00023561,2]
[332468799,1721212248395,-500.0,0.00023561,2]
[332468800,1721212248404,-500.0,0.00023561,2]
[332468801,1721212248415,-500.0,0.00023561,2]
[332468802,1721212248424,-500.0,0.00023561,2]
[332468803,1721212248434,-729.97,0.00023561,2]
[332468804,1721212248444,-500.0,0.00023561,2]
[332468805,1721212248454,-2448.75,0.00023561,2]
[332468806,1721212248464,-657.29,0.00023561,2]
[332468807,1721212248473,-500.0,0.00023561,2]
[332468808,1721212248483,-500.0,0.00023561,2]
[332468809,1721212248492,-500.0,0.00023561,2]
[332468810,1721212248501,-178.72,0.00023561,2]
[332468811,1721212248511,-204.54,0.00023561,2]
[332468812,1721212248521,-1010.93,0.00023561,2]
[332468813,1721212248531,-500.0,0.00023561,2]
[332468814,1721212248540,-255.33,0.00023561,2]
[332468815,1721212248551,-500.0,0.00023561,2]
[332468816,1721212248561,-500.0,0.00023561,2]
[332468817,1721212248571,-439.97,0.00023561,2]
[332468818,1721212248581,-426.43,0.00023561,2]
[332468819,1721212248591,-500.0,0.00023561,2]
[332468820,1721212248600,-358.18,0.00023561,2]
[332468821,1721212248747,-349.07,0.00023561,2]
[332468822,1721212248758,-500.0,0.00023561,2]
[332468823,1721212248767,-500.0,0.00023561,2]
[332468824,1721212248776,-500.0,0.00023561,2]
[332468825,1721212248786,-500.0,0.00023561,2]
[332468826,1721212248795,-250.28,0.00023561,2]
[332468827,1721212248805,-500.0,0.00023561,2]
[332468828,1721212248816,-221.12,0.00023561,2]
[332468829,1721212248827,-500.0,0.00023561,2]
[332468830,1721212248837,-500.0,0.00023561,2]
[332468831,1721212248847,-500.0,0.00023561,2]
[332468832,1721212248857,-500.0,0.00023561,2]
[332468833,1721212248867,-500.0,0.00023561,2]
[332468834,1721212248878,-500.0,0.00023561,2]
[332468835,1721212248890,-500.0,0.00023561,2]
[332468836,1721212248900,-500.0,0.00023561,2]
[332468837,1721212248910,-253.57,0.00023561,2]
[332468838,1721212248920,-500.0,0.00023561,2]
[332468839,1721212248930,-155.23,0.00023561,2]
[332468840,1721212248940,-214.89,0.00023561,2]
[332468841,1721212248950,-288.39,0.00023561,2]
[332468842,1721212248960,-572.39,0.00023561,2]
[332468843,1721212248971,-500.0,0.00023561,2]
[332468844,1721212248980,-354.83,0.00023561,2]
[332468845,1721212248990,-500.0,0.00023561,2]
[332468846,1721212248999,-249.20787976,0.00023561,2]
[332468847,1721212249009,-500.0,0.00023561,2]
[332468848,1721212249019,-500.0,0.00023561,2]
[332468849,1721212249030,-300.19870153,0.00023561,2]
[332468850,1721212249040,-500.0,0.00023561,2]
[332468851,1721212249051,-4425.24,0.00023561,2]
[332468852,1721212249063,-2280.85,0.00023561,2]
[332468853,1721212249072,-504.84628969,0.00023561,2]
[332468854,1721212249082,-505.34434665,0.00023561,2]
[332468855,1721212249092,-507.71936325,0.00023561,2]
[332468856,1721212249102,-512.11511129,0.00023561,2]
[332468857,1721212249112,-523.41,0.00023561,2]
[332468858,1721212249122,-378.68560974,0.00023561,2]
[332468859,1721212249132,-543.48954009,0.00023561,2]
[332468860,1721212249143,-500.0,0.00023561,2]
[332468861,1721212249154,-500.0,0.00023561,2]
[332468862,1721212249165,-508.21706358,0.00023561,2]
[332468863,1721212249176,-500.0,0.00023561,2]
[332468864,1721212249187,-525.55,0.00023561,2]
[332468865,1721212249197,-500.0,0.00023561,2]
[332468866,1721212249207,-500.0,0.00023561,2]
[332468867,1721212249217,-500.0,0.00023561,2]
[332468868,1721212249227,-2106.49,0.00023561,2]
[332468869,1721212249237,-564.48,0.00023561,2]
[332468870,1721212249247,-500.0,0.00023561,2]
[332468871,1721212249257,-500.0,0.00023561,2]
[332468872,1721212249267,-500.0,0.00023561,2]
[332468873,1721212249276,-500.0,0.00023561,2]
[332468874,1721212249286,-500.0,0.00023561,2]
[332468875,1721212249295,-448.35,0.00023561,2]
[332468876,1721212249305,-500.0,0.00023561,2]
[332468877,1721212249315,-2237.19,0.00023561,2]
[332468878,1721212249324,-500.0,0.00023561,2]
[332468879,1721212249334,-500.0,0.00023561,2]
[332468880,1721212249344,-500.0,0.00023561,2]
[332468881,1721212249354,-500.0,0.00023561,2]
[332468882,1721212249364,-500.0,0.00023561,2]
[332468883,1721212249376,-554.5,0.00023561,2]
[332468884,1721212249385,-500.0,0.00023561,2]
[332468885,1721212249395,-500.0,0.00023561,2]
[332468886,1721212249405,-500.0,0.00023561,2]
[332468887,1721212249417,-500.0,0.00023561,2]
[332468888,1721212249426,-500.0,0.00023561,2]
[332468889,1721212249437,-500.0,0.00023561,2]
[332468890,1721212249447,-500.0,0.00023561,2]
[332468891,1721212249457,-323.8,0.00023561,2]
[332468892,1721212249468,-500.0,0.00023561,2]
[332468893,1721212249478,-500.0,0.00023561,2]
[332468894,1721212249487,-500.0,0.00023561,2]
[332468895,1721212249498,-769.18,0.00023561,2]
[332468896,1721212249507,-500.0,0.00023561,2]
[332468897,1721212249516,-500.0,0.00023561,2]
[332468898,1721212249525,-937.8,0.00023561,2]
[332468899,1721212249535,-500.0,0.00023561,2]
[332468900,1721212249544,-500.20320839,0.00023561,2]
[332468901,1721212249554,-500.0,0.00023561,2]
[332468902,1721212249563,-500.0,0.00023561,2]
[332468903,1721212249573,-500.0,0.00023561,2]
[332468904,1721212249582,-500.0,0.00023561,2]
[332468905,1721212249591,-500.0,0.00023561,2]
[332468906,1721212249601,-207.50905827,0.00023561,2]
[332468907,1721212249611,-500.0,0.00023561,2]
[332468908,1721212249620,-500.0,0.00023561,2]
[332468909,1721212249630,-736.18,0.00023561,2]
[332468910,1721212249639,-500.0,0.00023561,2]
[332468911,1721212249648,-500.0,0.00023561,2]
[332468912,1721212249658,-500.0,0.00023561,2]
[332468913,1721212249668,-500.0,0.00023561,2]
[332468914,1721212249677,-500.0,0.00023561,2]
[332468915,1721212249687,-500.0,0.00023561,2]
[332468916,1721212249696,-500.0,0.00023561,2]
[332468917,1721212249706,-500.0,0.00023561,2]
[332468918,1721212249717,-500.0,0.00023561,2]
[332468919,1721212249726,-500.0,0.00023561,2]
[332468920,1721212249736,-500.0,0.00023561,2]
[332468921,1721212249745,-711.61,0.00023561,2]
[332468922,1721212249755,-500.0,0.00023561,2]
[332468923,1721212249765,-687.19,0.00023561,2]
[332468924,1721212249774,-500.0,0.00023561,2]
[332468925,1721212249784,-500.0,0.00023561,2]
[332468926,1721212249794,-500.0,0.00023561,2]
[332468927,1721212249804,-1287.17,0.00023561,2]
[332468928,1721212249814,-500.0,0.00023561,2]
[332468929,1721212249824,-500.0,0.00023561,2]
[332468930,1721212249835,-500.0,0.00023561,2]
[332468931,1721212249845,-653.86,0.00023561,2]
[332468932,1721212249855,-500.0,0.00023561,2]
[332468933,1721212249865,-500.0,0.00023561,2]
[332468934,1721212249874,-500.0,0.00023561,2]
[332468935,1721212249884,-500.0,0.00023561,2]
[332468936,1721212249893,-500.0,0.00023561,2]
[332468937,1721212249903,-500.0,0.00023561,2]
[332468938,1721212249913,-500.0,0.00023561,2]
[332468939,1721212249924,-500.0,0.00023561,2]
[332468940,1721212249934,-500.0,0.00023561,2]
[332468941,1721212249944,-500.0,0.00023561,2]
[332468942,1721212249954,-500.0,0.00023561,2]
[332468943,1721212249963,-500.0,0.00023561,2]
[332468944,1721212249972,-948.07,0.00023561,2]
[332468945,1721212249982,-500.0,0.00023561,2]
[332468946,1721212249991,-695.04,0.00023561,2]
[332468947,1721212250001,-500.0,0.00023561,2]
[332468948,1721212250010,-500.0,0.00023561,2]
[332468949,1721212250019,-1106.12,0.00023561,2]
[332468950,1721212250029,-776.07,0.00023561,2]
[332468951,1721212250039,-500.0,0.00023561,2]
[332468952,1721212250049,-677.81,0.00023561,2]
[332468953,1721212250058,-580.17,0.00023561,2]
[332468954,1721212250068,-914.92,0.00023561,2]
[332468955,1721212250079,-500.0,0.00023561,2]
[332468956,1721212250090,-585.08,0.00023561,2]
[332468957,1721212250101,-500.0,0.00023561,2]
[332468958,1721212250114,-500.0,0.00023561,2]
[332468959,1721212250124,-500.0,0.00023561,2]
[332468960,1721212250134,-397.25568511,0.00023561,2]
[332468961,1721212250146,-468.96113482,0.00023561,2]
[332468962,1721212250157,-339.53442985,0.00023561,2]
[332468963,1721212250167,-500.0,0.00023561,2]
[332468964,1721212250178,-500.0,0.00023561,2]
[332468965,1721212250189,-500.0,0.00023561,2]
[332468966,1721212250200,-500.0,0.00023561,2]
[332468967,1721212250213,-500.0,0.00023561,2]
[332468968,1721212250224,-2576.65,0.00023561,2]
[332468969,1721212250234,-267.52834616,0.00023561,2]
[332468970,1721212250245,-500.0,0.00023561,2]
[332468971,1721212250255,-544.86338467,0.00023561,2]
[332468972,1721212250267,-500.0,0.00023561,2]
[332468973,1721212250278,-500.0,0.00023561,2]
[332468974,1721212250288,-500.0,0.00023561,2]
[332468975,1721212250298,-500.0,0.00023561,2]
[332468976,1721212250308,-24755.13,0.00023561,2]
[332468977,1721212250317,-1429.26,0.00023561,2]
[332468978,1721212250327,-500.0,0.00023561,2]
[332468979,1721212250337,-3473.81,0.00023561,2]
[332468980,1721212250347,-500.0,0.00023561,2]
[332468981,1721212250356,-500.0,0.00023561,2]
[332468982,1721212250366,-500.0,0.00023561,2]
[332468983,1721212250380,-2310.96,0.00023561,2]
[332468984,1721212250390,-858.89,0.00023561,2]
[332468985,1721212250399,-500.0,0.00023561,2]
[332468986,1721212250409,-500.0,0.00023561,2]
[332468987,1721212250420,-500.0,0.00023561,2]
[332468988,1721212250429,-500.0,0.00023561,2]
[332468989,1721212250439,-500.0,0.00023561,2]
[332468990,1721212250449,-228.57,0.00023561,2]
[332468991,1721212250460,-597.96,0.00023561,2]
[332468992,1721212250470,-500.0,0.00023561,2]
[332468993,1721212250479,-500.0,0.00023561,2]
[332468994,1721212250489,-500.0,0.00023561,2]
[332468995,1721212250499,-500.0,0.00023561,2]
[332468996,1721212250508,-3878.75,0.00023561,2]
[332468997,1721212250518,-500.0,0.00023561,2]
[332468998,1721212250528,-780.32,0.00023561,2]
[332468999,1721212250539,-500.0,0.00023561,2]
[332469000,1721212250548,-500.0,0.00023561,2]
[332469001,1721212250557,-702.82,0.00023561,2]
[332469002,1721212250567,-500.0,0.00023561,2]
[332469003,1721212250577,-500.0,0.00023561,2]
[332469004,1721212250587,-500.0,0.00023561,2]
[332469005,1721212250596,-275.66,0.00023561,2]
[332469006,1721212250606,-8718.27020911,0.00023561,2]
[332469021,1721212819920,275.82587938,0.00014999,2]
[332469022,1721212837344,224.81671974,0.00014999,2]
[332469037,1721213108428,12673.0,0.00021,10]
[332469041,1721213200335,2783.0,0.00025,120]
[332469124,1721213439656,-191.27062445,0.00018799,2]
[332469125,1721213439666,-435.0,0.0002,2]
[332469126,1721213439676,-351.48561107,0.0002,2]
[332469127,1721213439685,-158.8017905,0.0002,2]
[332469128,1721213439694,-164.696287,0.00020495,2]
[332469129,1721213439704,-250.0,0.00020509,2]
[332469130,1721213439713,-268.2364,0.00020509,2]
[332469131,1721213439723,-174.15623839,0.00020545,2]
[332469132,1721213439736,-524.311147,0.00020646,2]
[332469133,1721213439746,-152.8222971,0.000209,2]
[332469134,1721213439760,-396.60210355,0.00021095,2]
[332469135,1721213439772,-563.001614,0.00021096,2]
[332469136,1721213439782,-324.7,0.00021259,2]
[332469137,1721213439795,-324.7,0.00021518,2]
[332469138,1721213439805,-324.7,0.00021777,2]
[332469139,1721213439815,-3000.0,0.000218,2]
[332469140,1721213439827,-300.0,0.00021809,2]
[332469141,1721213439837,-3000.0,0.0002181,2]
[332469142,1721213439848,-1037.53127397,0.00021817,3]
[332469143,1721213439858,-156.59281556,0.00021817,2]
[332469144,1721213439868,-3000.0,0.0002182,2]
[332469145,1721213439878,-3000.0,0.0002183,2]
[332469146,1721213439887,-3000.0,0.0002184,2]
[332469147,1721213439897,-3000.0,0.0002185,2]
[332469148,1721213439907,-3000.0,0.0002186,2]
[332469149,1721213439918,-3000.0,0.0002187,2]
[332469150,1721213439928,-3000.0,0.0002188,2]